Cogmind - Beta 17 @@@ ROGUE MODE // 2026.08.03 @ 16:43:34 Player: Issy Result: Self-destructed Performance ------------- Evolutions (2) 1000 Regions Visited (5) 1000 Robots Destroyed (12) 60 Value Destroyed (235) 235 Prototype IDs (1) 20 Alien Tech Used (0) 0 Bonus (300) 300 TOTAL SCORE: 2615 Bonus ------- Aligned with FarCom 300 Cogmind --------- Core Integrity 528/550 Matter 266/300 Energy 248/250 System Corruption 0% Temperature Cool (0) Movement Flying (120) Ox1 Location -8/Materials Parts ------- > --- POWER (2) -------- Ion Engine > --- PROPULSION (4) --- Flight Unit > --- UTILITY (2) ------ Seismic Detector Modified TNC > --- WEAPON (3) ------- (None) > --- INVENTORY (5) ---- Aluminum Leg Aluminum Leg Improved Heat Sink Medium Matter Pod (88) Peak State ------------ > --- POWER ------------ Ion Engine > --- PROPULSION ------- Flight Unit Flight Unit Flight Unit > --- UTILITY ---------- Seismic Detector Modified TNC > --- WEAPON ----------- Light Assault Rifle Light Assault Rifle > --- INVENTORY -------- Aluminum Leg Aluminum Leg Medium Matter Pod [Rating: 13] Favorites ----------- Power Ion Engine Engine Ion Engine Propulsion Flight Unit Treads Light Treads Leg Aluminum Leg Flight Unit Flight Unit Utility Seismic Detector Device Seismic Detector Storage Small Storage Unit Processor Modified TNC Weapon Light Assault Rifle Energy Gun Small Laser Ballistic Gun Light Assault Rifle Build | -11 -10 -10 -10 -9 -8 ------- Run | Yrd Mat Min Exi Min Mat Slots Evolved 4 | . . . . . 4 Power 1 | . . . . . 1 Propulsion 2 | . . . . . 2 Utility . | . . . . . . Weapon 1 | . . . . . 1 Parts Attached 22 | 6 13 . 1 1 1 Power 3 | 1 2 . . . . Engine 3 | 1 2 . . . . Core . | . . . . . . Reactor . | . . . . . . Propulsion 9 | 2 6 . . 1 . Treads 2 | 2 . . . . . Leg 3 | . 3 . . . . Wheel . | . . . . . . Hover . | . . . . . . Flight 4 | . 3 . . 1 . Utility 5 | 1 3 . 1 . . Device 2 | . 2 . . . . Storage 2 | 1 1 . . . . Processor 1 | . . . 1 . . Hackware . | . . . . . . Protection . | . . . . . . Artifact . | . . . . . . Weapon 5 | 2 2 . . . 1 Energy Gun 2 | . 2 . . . . Energy Cannon . | . . . . . . Ballistic Gun 3 | 2 . . . . 1 Ballistic Cannon . | . . . . . . Launcher . | . . . . . . Special Weapon . | . . . . . . Impact Weapon . | . . . . . . Slashing Weapon . | . . . . . . Piercing Weapon . | . . . . . . Special Melee Weapon . | . . . . . . Unidentified Prototypes 1 | . . . 1 . . Parts Lost 5 | . 3 . . . 2 Power 1 | . 1 . . . . Propulsion 3 | . 1 . . . 2 Utility 1 | . 1 . . . . Weapon . | . . . . . . Highest Loss Streak 3 | . 3 . . . 2 To Critical Strikes . | . . . . . . Average Backups 3 | . 2 5 5 5 3 Power . | . . . . . . Propulsion 2 | . 2 3 3 3 2 Utility . | . . 1 1 1 1 Weapon . | . . 1 1 1 . Tool/Special . | . . . . . . Unused Backups 1 | . . . . . 1 Power . | . . . . . . Propulsion . | . . . . . . Utility 1 | . . . . . 1 Weapon . | . . . . . . Tool/Special . | . . . . . . Average Slot Usage (%) 78 | . 81 71 74 85 69 Engine 13 | . 14 14 14 14 9 Treads 7 | . 15 . . . . Leg 1 | . 2 . . . . Flight 19 | . 9 28 28 28 25 Device 9 | . 6 14 14 14 9 Storage 4 | . 9 . . . . Processor 3 | . . . 3 14 9 Energy Gun 2 | . 4 . . . . Ballistic Gun 16 | . 18 14 14 14 16 Peak Build Rating 13 | 6 7 5 11 11 13 Average Rating 6 | 4 5 5 6 11 12 On Entrance 6 | . 6 5 5 11 11 Avg Prop Armor Cover (%) . | . . . . . . Naked Turns . | . . . . . . Heaviest Build 14 | 13 14 7 7 7 8 Greatest Support 40 | 40 40 8 8 8 12 Greatest Overweight (x) . | . . . . . . Average Overweight (x) . | . . . . . . Largest Inventory Capacity 8 | 8 8 5 5 5 5 Average Capacity 6 | 6 7 5 5 5 5 Most Carried 8 | 1 8 5 5 5 5 Average Carried 3 | . 2 5 5 5 3 Final Capacity 8 | 8 5 5 5 5 5 Final Carried 5 | 1 5 5 5 5 4 Class Distribution -------------------- 91% | Mutant 8% | Scavenger-Mutant Dominant Class ---------------- Mutant | -10/Materials Mutant | -10/Mines Mutant | -10/Exiles Mutant | -9/Mines Scavenger-Mutant | -8/Materials Resources | -11 -10 -10 -10 -9 -8 ----------- Run | Yrd Mat Min Exi Min Mat Matter Collected 614 | 243 303 . . 68 . Remotely . | . . . . . . Salvage Created 340 | . 272 . . 51 17 Parts 20 | . 11 . . 7 2 Haulers Intercepted . | . . . . . . Recyclers Shooed . | . . . . . . Parts Field Recycled . | . . . . . . Retrieved Matter . | . . . . . . Parts Self-Destructed . | . . . . . . Prevented . | . . . . . . Parts Restored . | . . . . . . Kills | -11 -10 -10 -10 -9 -8 ------- Run | Yrd Mat Min Exi Min Mat Combat Hostiles Destroyed 11 | . 7 . . 3 1 Guns 11 | . 7 . . 3 1 Classes Destroyed 3 | . 3 . . . . Watcher 1 | . 1 . . . . Swarmer 7 | . 3 . . 3 1 Grunt 4 | . 4 . . . . Best Kill Streak 5 | . 5 . . 3 1 Combat Bots Only 3 | . 3 . . 3 1 Max Kills in Single Turn 1 | . 1 . . 1 1 Gunslinging . | . . . . . . Exploded . | . . . . . . Melee . | . . . . . . Uniques/NPCs Destroyed . | . . . . . . Combat | -11 -10 -10 -10 -9 -8 -------- Run | Yrd Mat Min Exi Min Mat Hostile Shots Fired 158 | . 99 4 . 26 29 Missed 68 | . 38 1 . 19 10 Hits 90 | . 61 3 . 7 19 Projectile 90 | . 61 3 . 7 19 AOE 1 | . . 1 . . . Damage Taken 927 | . 668 59 . 55 145 Core 229 | . 145 39 . 23 22 Absorbed by Shields . | . . . . . . Core Remaining (%) 58 | 100 . . . 17 . Volleys Fired 60 | . 38 1 . 9 12 Largest 2 | . 2 1 . 1 2 Hottest 85 | . 85 20 . 20 40 Shots Fired 104 | . 70 1 . 9 24 Gun 104 | . 70 1 . 9 24 Cannon . | . . . . . . Launcher . | . . . . . . Special . | . . . . . . Kinetic 79 | . 45 1 . 9 24 Thermal 25 | . 25 . . . . Explosive . | . . . . . . Electromagnetic . | . . . . . . Robot Hit Streak 11 | . 11 . . 4 4 Robot Miss Streak 6 | . 5 5 . 6 5 Penetration Max . | . . . . . . Secondary Targets 4 | . 3 . . . 1 Max Gunslinging Chain 1 | . 1 . . . 1 Shots Hit Robots 53 | . 34 . . 7 12 Core Hits 23 | . 14 . . 5 4 Critical Kills 1 | . . . . 1 . Critical Parts Destroyed . | . . . . . . Critical Strikes 1 | . . . . 1 . Destroy 1 | . . . . 1 . Melee Attacks . | . . . . . . Impact . | . . . . . . Slashing . | . . . . . . Piercing . | . . . . . . Sneak Attacks . | . . . . . . Combat Hostiles . | . . . . . . Follow-up Attacks . | . . . . . . Damage Inflicted 552 | . 396 . . 57 99 Guns 552 | . 396 . . 57 99 Cannons . | . . . . . . Explosions . | . . . . . . Melee . | . . . . . . Ramming . | . . . . . . Kinetic 408 | . 252 . . 57 99 Thermal 144 | . 144 . . . . Explosive . | . . . . . . Electromagnetic . | . . . . . . Impact . | . . . . . . Slashing . | . . . . . . Piercing . | . . . . . . Highest Corruption . | . . . . . . Average Corruption . | . . . . . . Corruption Purged . | . . . . . . Corruption Blocked . | . . . . . . Overload Shots . | . . . . . . Overflow Damage . | . . . . . . Projectiles . | . . . . . . Explosions . | . . . . . . Melee . | . . . . . . Knockbacks . | . . . . . . Impact . | . . . . . . Kinetic . | . . . . . . Secondary . | . . . . . . Self-Inflicted Damage . | . . . . . . Shots . | . . . . . . Rammed . | . . . . . . Targets Rammed . | . . . . . . Kicked . | . . . . . . Crushed . | . . . . . . Highest Temperature 151 | . 151 2 . 4 . Average Temperature 48 | . 54 2 . 2 . Received Heat Transfer 273 | . 255 18 . . . Siege Activations . | . . . . . . Martial Activations . | . . . . . . Shielding Activations . | . . . . . . Robots Disrupted . | . . . . . . Combat Hostiles . | . . . . . . Robots Corrupted . | . . . . . . Combat Hostiles . | . . . . . . Parts Fried . | . . . . . . Impact Corruptions . | . . . . . . Robots Melted . | . . . . . . Combat Hostiles . | . . . . . . Parts Melted . | . . . . . . Heat Transferred 325 | . 325 . . . . Parts Sabotaged . | . . . . . . Parts Stolen . | . . . . . . Parts Stripped . | . . . . . . Power Chain Reactions . | . . . . . . Alert | -11 -10 -10 -10 -9 -8 ------- Run | Yrd Mat Min Exi Min Mat Maximum Alert Level . | . . . . . . Low Security (%) 100 | 100 100 100 . 100 100 Level 1 . | . . . . . . Level 2 . | . . . . . . Level 3 . | . . . . . . Level 4 . | . . . . . . Level 5 . | . . . . . . High Security . | . . . . . . Max Security . | . . . . . . Peak Influence 107 | . 107 30 . 60 90 Initial 15 | . . 10 . . 15 Average 31 | . 45 5 . 34 33 Influence Increases 377 | . 187 30 . 70 90 Destroy 0b10 Robot/C 220 | . 140 . . 60 20 Destroy 0b10 Robot/NC 5 | . 5 . . . . Destroy Leader 62 | . 42 . . 10 10 Lose Combat Pursuer 90 | . . 30 . . 60 Influence Decreases 317 | . 160 37 20 30 70 Entered New Map 62 | . . 17 20 . 25 Time Decay 205 | . 130 20 . 30 25 Lost Part 50 | . 30 . . . 20 Squads Dispatched 5 | . 4 . . . 1 Investigation 2 | . 1 . . . 1 Extermination . | . . . . . . Reinforcement 3 | . 3 . . . . Assault . | . . . . . . Garrison . | . . . . . . Intercept . | . . . . . . Searches Triggered . | . . . . . . Construction Impeded . | . . . . . . Haulers Reinforced . | . . . . . . Active Scanning Responses . | . . . . . . Cargo Convoy Interrupts . | . . . . . . Stealth | -11 -10 -10 -10 -9 -8 --------- Run | Yrd Mat Min Exi Min Mat Distress Signals 2 | . 2 . . . . Communications Jammed . | . . . . . . Distress Signals . | . . . . . . Times Spotted 31 | . 14 4 . 4 9 Peak Tracking Total 8 | . 8 2 . 4 8 Tactical Retreats 2 | . . 1 . . 1 Traps | -11 -10 -10 -10 -9 -8 ------- Run | Yrd Mat Min Exi Min Mat Traps Triggered 1 | . . . . . 1 Indirectly . | . . . . . . Trap Hack Attempts . | . . . . . . Triggered . | . . . . . . Disarmed . | . . . . . . Reprogrammed . | . . . . . . Reused . | . . . . . . Traps Extracted . | . . . . . . Installed . | . . . . . . Triggered . | . . . . . . Machines | -11 -10 -10 -10 -9 -8 ---------- Run | Yrd Mat Min Exi Min Mat Machines Disabled . | . . . . . . Max in Single Turn . | . . . . . . Machines Repaired . | . . . . . . Machines Dismantled . | . . . . . . Machines Sabotaged . | . . . . . . Overloaded Fab Kills . | . . . . . . Hacking | -11 -10 -10 -10 -9 -8 --------- Run | Yrd Mat Min Exi Min Mat Machines Accessed 4 | . 3 . 1 . . Terminals 2 | . 2 . . . . Fabricators . | . . . . . . Repair Stations . | . . . . . . Recycling Units 1 | . 1 . . . . Scanalyzers . | . . . . . . Garrison Access . | . . . . . . Total Hacks 9 | . 8 . 1 . . Successful 5 | . 4 . 1 . . Failed 4 | . 4 . . . . Catastrophic . | . . . . . . Database Lockouts . | . . . . . . Manual 2 | . . . 2 . . Terminals 5 | . 5 . . . . Fabricators . | . . . . . . Repair Stations . | . . . . . . Recycling Units 3 | . 3 . . . . Scanalyzers . | . . . . . . Garrison Access . | . . . . . . Terminal Hacks 3 | . 2 . 1 . . Record 2 | . 1 . 1 . . Investigation Status 1 | . 1 . . . . Fabricator Hacks . | . . . . . . Repair Station Hacks . | . . . . . . Recycling Unit Hacks 2 | . 2 . . . . Process 1 | . 1 . . . . Report Inventory 1 | . 1 . . . . Scanalyzer . | . . . . . . Garrison Access Hacks . | . . . . . . Unauthorized Hacks . | . . . . . . Terminals . | . . . . . . Fabricators . | . . . . . . Repair Stations . | . . . . . . Recycling Units . | . . . . . . Scanalyzers . | . . . . . . Garrison Access . | . . . . . . Data Cores Recovered . | . . . . . . Used . | . . . . . . Hacking Detections 2 | . 2 . . . . Full Trace Events 1 | . 1 . . . . Feedback Events . | . . . . . . Feedback Blocked . | . . . . . . Robot Schematics Acquired . | . . . . . . Robots Built . | . . . . . . Authchips . | . . . . . . Time . | . . . . . . Total Robot Build Rating . | . . . . . . Part Schematics Acquired . | . . . . . . Parts Built . | . . . . . . Authchips . | . . . . . . Time . | . . . . . . Total Part Build Rating . | . . . . . . Part Studies Acquired . | . . . . . . Parts Repaired . | . . . . . . Time . | . . . . . . Parts Recycled . | . . . . . . Recycled Matter 2 | . 2 . . . . Retrieved Matter . | . . . . . . Retrieved Components . | . . . . . . Parts Scanalyzed . | . . . . . . Part Schematics Acquired . | . . . . . . Parts Damaged . | . . . . . . Bothacking | -11 -10 -10 -10 -9 -8 ------------ Run | Yrd Mat Min Exi Min Mat Used RIF Installer . | . . . . . . Robots Hacked . | . . . . . . Non-combat . | . . . . . . Combat . | . . . . . . Robot Hacks Applied . | . . . . . . Relay Couplers Released . | . . . . . . Fabnet Peak Effective % . | . . . . . . Robots Rewired . | . . . . . . Allies Hacked . | . . . . . . Hacks Repelled . | . . . . . . Allies | -11 -10 -10 -10 -9 -8 -------- Run | Yrd Mat Min Exi Min Mat Total Allies . | . . . . . . Largest Group . | . . . . . . Highest-Rated Group . | . . . . . . Highest-Rated Ally . | . . . . . . Total Orders . | . . . . . . Ally Attacks . | . . . . . . Total Damage . | . . . . . . Kills . | . . . . . . Allies Corrupted . | . . . . . . Allies Melted . | . . . . . . Intel | -11 -10 -10 -10 -9 -8 ------- Run | Yrd Mat Min Exi Min Mat Active Infowar (turns) 571 | . 159 115 129 96 72 Terrain 103 | . 103 . . . . Seismic 468 | . 56 115 129 96 72 T.N.C. 206 | . . . 38 96 72 Robot Analysis Total . | . . . . . . Derelict Logs Recovered 4 | . . 1 . 3 . Drone Launches . | . . . . . . Drone Recoveries . | . . . . . . Exploration | -11 -10 -10 -10 -9 -8 ------------- Run | Yrd Mat Min Exi Min Mat Turns Passed 855 | 79 364 115 129 96 72 Spaces Moved 1316 | 46 320 291 343 212 104 Core 3 | 3 . . . . . Treads 119 | 43 76 . . . . Legs 16 | . 16 . . . . Wheels . | . . . . . . Hover . | . . . . . . Flight 1178 | . 228 291 343 212 104 Fastest Speed 34 | 50 37 37 37 37 34 Average Speed 48 | 152 70 37 37 37 34 Slowest Speed 160 | 160 160 37 37 37 34 Overloaded Moves . | . . . . . . Propulsion Burnouts . | . . . . . . Robots Hopped 16 | . 3 . . 9 4 Potential Cave-ins . | . . . . . . Cave-ins Triggered . | . . . . . . Exploration Rate (%) 29 | 4 42 39 43 36 10 Regions Visited 5 Branch Regions 3 Pre-discovered Areas 1 | . . . . 1 . Known Exits Taken . | . . . . . . Unknown Exits Taken 5 | 1 1 1 1 1 . Scrap Searched . | . . . . . . Spaces Dug . | . . . . . . Terrain Destroyed . | . . . . . . Melee . | . . . . . . Projectile . | . . . . . . AOE . | . . . . . . Terrain Rammed . | . . . . . . Walls Destroyed . | . . . . . . Machines Disabled . | . . . . . . Actions | -11 -10 -10 -10 -9 -8 --------- Run | Yrd Mat Min Exi Min Mat Total 1410 | 52 388 296 343 213 118 Wait 5 | . . 5 . . . Move 1287 | 45 313 290 342 198 99 Hop 8 | . 3 . . 4 1 Pick Up 12 | 1 10 . . . 1 Fast Attach 10 | 6 3 . 1 . . Attach 8 | . 6 . . . 2 Detach 3 | . 2 . . . 1 Swap 7 | . 6 . . 1 . Drop 10 | . 7 . . 1 2 Fire 60 | . 38 1 . 9 12 Melee . | . . . . . . Ram . | . . . . . . Kick . | . . . . . . Crush . | . . . . . . Escape Stasis . | . . . . . . Rewire . | . . . . . . Trap . | . . . . . . Miscellaneous . | . . . . . . Route ------- -11/Scrapyard -10/Materials (discovered 2 exits: *Mat / [*Min]) -10/Mines (discovered 2 exits: Mat / *Exi) -10/Exiles -9/Mines -8/Materials (discovered 1 exit: Fac) History --------- Turn | Location | Event 9 | -11/Scrapyard | Discovered new exit (range 15) 80 | -11/Scrapyard | Entered Materials 256 | -10/Materials | Core integrity fell below 50% 296 | -10/Materials | Lost 3 parts (1p1n1u) 354 | -10/Materials | Build established: Mutant 374 | -10/Materials | Discovered new exit (range 8) 419 | -10/Materials | Discovered new exit (range 11) 444 | -10/Materials | Entered Mines 467 | -10/Mines | Assembled infested the area 472 | -10/Mines | Assisted by a Guerilla fighting off Assembled 493 | -10/Mines | Identified exit to Materials 556 | -10/Mines | Deemed a non-threat by the Exiles lab entrance 556 | -10/Mines | Discovered new exit (range 5) 559 | -10/Mines | Entered Exiles 569 | -10/Exiles | Discovered new exit (range 15) 575 | -10/Exiles | Met 8R-AWN 584 | -10/Exiles | Met EX-HEX 600 | -10/Exiles | Met EX-BIN 632 | -10/Exiles | Aligned with FarCom system 632 | -10/Exiles | Given EX-Vault access code 647 | -10/Exiles | Opened EX-Vault 650 | -10/Exiles | Found Prototype Processor 650 | -10/Exiles | Identified Modified TNC 659 | -10/Exiles | Warned to stay clear of 0b10 Research branches 688 | -10/Exiles | Left Exiles lab with Modified TNC 688 | -10/Exiles | Entered Mines 696 | -9/Mines | Met a Derelict bent on vengeance 706 | -9/Mines | Learned location of Zion (-6) 726 | -9/Mines | Core integrity fell below 20% 755 | -9/Mines | Learned location of 1 exit from Materials 779 | -9/Mines | Discovered new exit (range 13) 784 | -9/Mines | Entered Materials 784 | -8/Materials | Evolved 4 slots: Power x1, Propulsion x2, Weapon x1 785 | -8/Materials | Identified exit to Factory 856 | -8/Materials | Self-destructed Last Messages --------------- EXIT=FOUND K-01 Serf collects debris. PARAMETERS=POWER+1,PROPULSION+2,WEAPON+1 LOCATION=UNKNOWN GOAL=ESCAPE Receiving FarCom transmissions... Loading 1 Materials exit... K-01 Serf collects debris. Triggered Alarm Trap. An alarm sounds. ALERT: Alarm triggered, dispatching investigation squad. Acquired Imp. Heat Sink. S-10 Pest destroyed. Switching to secondary target: S-10 Pest. K-01 Serf collects debris. Flight Unit destroyed. K-01 Serf collects debris. Flight Unit destroyed. Dropped Lgt. Assault Rifle. Map ----- +----------------------------------------------------+ | ??????????????????????????????????????????? | | ??????????????????????????????????????????? | | ??????????????????????????????????????????? | | ??????????????????????????????????????????? | | ??????????????????????????????????????????? | | ??????????????????????????????????????????? | | ??????????????????????????????????????????? | | ??????????????????????????????????????????? | | ??????????????????????????????????????????? | | ??????????????????????????????????????????? | | ????????????????? ???????????????????????? | | ????????????????? ???????????????????????? | | ????????????????? ???????????????????????? | | ????????????????# ???????????????????????? | | ????????????????# ??????????????????????a? | | ????????????????# ???????????????????????? | | ????????????????# ???????????????????????? | | ????????????????# #??????????????????????? | | ????????????????# #??????????????????????? | | ????????????????# #???##?????????????????? | | ????????????????# #??"""?????????????????? | | ????????????#???# k#?""""?????????????????? | | ????????????# ### # """"?????????????????? | | ?????????????? # ""???????????????????? | | ???????????????? [s ?????????????????????? | | ?????????????????#@#??????????????????????? | | ?????????????????#s#??????????????????????? | | ?????????????????#s#?????????????Y????????? | | ?????????????????#=#??????????????????????? | | ?????????????????#a####???????????????????? | | ?????????????????# #???????????????????? | | ?????????????????#### #???????????????????? | | ????????????????????# #???????????????????? | | ????????????????????# #???????????????????? | | ????????????????????# #???????????????????? | | ????????????????????# #???????????????????? | | ????????########????# #???????????????????? | | ????????# ! #?####+#####???????????????? | | ????????# ### g g g#???????????????? | | ????????# """ + + """ #???????????????? | | ????????#! """ ### """ ####+###########? | | ????????# """ #?# """ w# | | ????????# #?# / | | ????????####+##### """ # | | ????????# ## """ # #########+##??? | | ????????# ## """ # #?????????????? | | ????????# ## # #?????????????? | | ????????##### ########### #?????????????? | | ????????????# #?????????# #?????????????? | | ????????????# #?????????# #?????????????? | +----------------------------------------------------+ Best States ------------- Heat Dissipation 31 Energy Generation 10 Energy Capacity 250 Matter Stores 300 Matter Capacity 300 Sight Range 16 Terrain Scan Range 14 Terrain Scan Density 10 Evasion (%) 63 Recoil Reduction 2 Item Schematics ----------------- None Robot Schematics ------------------ None Fabricated ------------ Nothing Repaired ---------- Nothing Studied --------- None Alien Tech Used ----------------- None Achievements -------------- None Challenges ------------ None Game ------ Seed ResetCloakLegs Manual? 0 Play Time 00:22:54 Cumulative 5.6 hours Start 2026.08.03 @ 16:15:36 End 2026.08.03 @ 16:43:34 Sessions 1 Manual Loads 0 Difficulty Rogue Special Mode None Game No. 7 Rogue 3 Adventurer 4 Explorer 0 Win Type - Total 0 Types 0/0/0/0/0/0/0/0/0/0 Lore% 2 Gallery% 9 Achievement% 10 Wizard Run 0 Options --------- Layout 1 ASCII 0 Keyboard 0 Movement Arrows Keybinds 0 Fullscreen 1 Font 24/Smallcaps Map View 50x35 Zoom Use 0% Tactical HUD 0 Map Filters NONE Filters NONE Steam 1 RUN: fcbfc3b4-4a99-41ad-9e3c-71236981665b